fUST/lending_fUST_20250130
["ID","MTS","AMOUNT","RATE_DAILY","PERIOD"]
[350948446,1738231846487,-150.06,0.0001726,2]
[350948447,1738231846496,-150.06,0.0001726,2]
[350948448,1738231846505,-500.0,0.0001726,2]
[350948449,1738231846515,-150.06,0.0001726,2]
[350948450,1738231846524,-500.0,0.0001726,2]
[350948451,1738231846535,-751.06,0.0001726,2]
[350948452,1738231846545,-154.97391082,0.0001726,2]
[350948453,1738231846556,-500.0,0.0001726,2]
[350948454,1738231846565,-500.0,0.0001726,2]
[350948455,1738231846574,-500.0,0.0001726,2]
[350948456,1738231846584,-1377.99,0.0001726,2]
[350948457,1738231846593,-500.0,0.0001726,2]
[350948458,1738231846602,-500.0,0.0001726,2]
[350948459,1738231846612,-633.36,0.0001726,2]
[350948460,1738231846622,-619.8,0.0001726,2]
[350948461,1738231846632,-500.0,0.0001726,2]
[350948462,1738231846642,-500.0,0.0001726,2]
[350948463,1738231846651,-500.0,0.0001726,2]
[350948464,1738231846662,-1852.67,0.0001726,2]
[350948465,1738231846672,-720.48,0.0001726,2]
[350948466,1738231846681,-500.0,0.0001726,2]
[350948467,1738231846691,-500.0,0.0001726,2]
[350948468,1738231846700,-500.0,0.0001726,2]
[350948469,1738231846709,-547.19,0.0001726,2]
[350948470,1738231846719,-7043.98,0.0001726,2]
[350948471,1738231846730,-500.0,0.0001726,2]
[350948472,1738231846739,-588.46,0.0001726,2]
[350948473,1738231846749,-268.0,0.0001727,2]
[350948474,1738231846759,-2000.0,0.000173,2]
[350948475,1738231846771,-2000.0,0.000173,2]
[350948476,1738231846782,-151.0,0.000173,2]
[350948477,1738231846792,-500.0,0.00017397,2]
[350948478,1738231846801,-500.0,0.00017397,2]
[350948479,1738231846811,-500.0,0.00017397,2]
[350948480,1738231846821,-500.0,0.00017397,2]
[350948481,1738231846835,-500.0,0.00017397,2]
[350948482,1738231846844,-500.0,0.00017397,2]
[350948483,1738231846853,-500.0,0.00017397,2]
[350948484,1738231846865,-836.07,0.00017397,2]
[350948485,1738231846875,-500.0,0.00017397,2]
[350948486,1738231846885,-500.0,0.00017397,2]
[350948487,1738231846895,-500.0,0.00017397,2]
[350948488,1738231846905,-500.0,0.00017397,2]
[350948489,1738231846917,-500.0,0.00017397,2]
[350948490,1738231846927,-994.48,0.00017397,2]
[350948491,1738231847024,-500.0,0.00017397,2]
[350948492,1738231847034,-751.06,0.00017397,2]
[350948493,1738231847043,-500.0,0.00017397,2]
[350948494,1738231847053,-500.0,0.00017397,2]
[350948495,1738231847063,-1377.99,0.00017397,2]
[350948496,1738231847072,-500.0,0.00017397,2]
[350948497,1738231847081,-633.36,0.00017397,2]
[350948498,1738231847090,-619.8,0.00017397,2]
[350948499,1738231847099,-500.0,0.00017397,2]
[350948500,1738231847108,-500.0,0.00017397,2]
[350948501,1738231847117,-500.0,0.00017397,2]
[350948502,1738231847127,-1852.67,0.00017397,2]
[350948503,1738231847136,-720.48,0.00017397,2]
[350948504,1738231847146,-635.76,0.00017397,2]
[350948505,1738231847155,-500.0,0.00017397,2]
[350948506,1738231847165,-500.0,0.00017397,2]
[350948507,1738231847175,-547.19,0.00017397,2]
[350948508,1738231847184,-7043.98,0.00017397,2]
[350948509,1738231847194,-500.0,0.00017397,2]
[350948510,1738231847203,-588.46,0.00017397,2]
[350948511,1738231847211,-6422.39,0.000174,2]
[350948512,1738231847221,-5380.23,0.000174,2]
[350948513,1738231847230,-154.0,0.00017422,2]
[350948514,1738231847239,-154.0,0.00017422,2]
[350948515,1738231847248,-154.0,0.00017422,2]
[350948516,1738231847258,-154.0,0.00017422,2]
[350948517,1738231847267,-154.0,0.00017422,2]
[350948518,1738231847277,-154.0,0.00017422,2]
[350948519,1738231847287,-154.0,0.00017422,2]
[350948520,1738231847296,-151.0,0.000175,2]
[350948521,1738231847306,-150.132568,0.000175,2]
[350948522,1738231847315,-165.793088,0.00017502,3]
[350948523,1738231847324,-150.16,0.00017534,2]
[350948524,1738231847333,-150.06,0.00017534,2]
[350948525,1738231847342,-150.21,0.00017534,2]
[350948526,1738231847351,-208.84934751,0.00017534,2]
[350948527,1738231847360,-406.87946422,0.00017534,2]
[350948528,1738231847370,-500.0,0.00017534,2]
[350948529,1738231847379,-500.0,0.00017534,2]
[350948530,1738231847389,-500.0,0.00017534,2]
[350948531,1738231847398,-500.0,0.00017534,2]
[350948532,1738231847408,-500.0,0.00017534,2]
[350948533,1738231847417,-500.0,0.00017534,2]
[350948534,1738231847427,-836.07,0.00017534,2]
[350948535,1738231847436,-500.0,0.00017534,2]
[350948536,1738231847445,-500.0,0.00017534,2]
[350948537,1738231847454,-500.0,0.00017534,2]
[350948538,1738231847464,-170.12,0.00017534,2]
[350948539,1738231847473,-500.0,0.00017534,2]
[350948540,1738231847482,-994.48,0.00017534,2]
[350948541,1738231847491,-500.0,0.00017534,2]
[350948542,1738231847500,-751.06,0.00017534,2]
[350948543,1738231847509,-500.0,0.00017534,2]
[350948544,1738231847518,-500.0,0.00017534,2]
[350948545,1738231847527,-1377.99,0.00017534,2]
[350948546,1738231847538,-500.0,0.00017534,2]
[350948547,1738231847548,-633.36,0.00017534,2]
[350948548,1738231847559,-619.8,0.00017534,2]
[350948549,1738231847567,-500.0,0.00017534,2]
[350948550,1738231847576,-500.0,0.00017534,2]
[350948551,1738231847585,-460.92,0.00017534,2]
[350948552,1738231847594,-1852.67,0.00017534,2]
[350948553,1738231847603,-720.48,0.00017534,2]
[350948554,1738231847612,-500.0,0.00017534,2]
[350948555,1738231847622,-500.0,0.00017534,2]
[350948556,1738231847631,-547.19,0.00017534,2]
[350948557,1738231847641,-7043.98,0.00017534,2]
[350948558,1738231847649,-500.0,0.00017534,2]
[350948559,1738231847659,-588.46,0.00017534,2]
[350948560,1738231847668,-500.0,0.00017671,2]
[350948561,1738231847677,-196.01389208,0.00017671,2]
[350948562,1738231847686,-500.0,0.00017671,2]
[350948563,1738231847696,-500.0,0.00017671,2]
[350948564,1738231847705,-500.0,0.00017671,2]
[350948565,1738231847714,-388.36,0.00017671,2]
[350948566,1738231847723,-836.07,0.00017671,2]
[350948567,1738231847731,-500.0,0.00017671,2]
[350948568,1738231847741,-500.0,0.00017671,2]
[350948569,1738231847750,-382.13042299,0.00017671,2]
[350948570,1738231847759,-500.0,0.00017671,2]
[350948571,1738231847768,-994.48,0.00017671,2]
[350948572,1738231847777,-500.0,0.00017671,2]
[350948573,1738231847787,-751.06,0.00017671,2]
[350948574,1738231847796,-500.0,0.00017671,2]
[350948575,1738231847805,-500.0,0.00017671,2]
[350948576,1738231847814,-1377.99,0.00017671,2]
[350948577,1738231847825,-500.0,0.00017671,2]
[350948578,1738231847835,-633.36,0.00017671,2]
[350948579,1738231847844,-619.8,0.00017671,2]
[350948580,1738231847853,-500.0,0.00017671,2]
[350948581,1738231847862,-1852.67,0.00017671,2]
[350948582,1738231847873,-720.48,0.00017671,2]
[350948583,1738231847882,-500.0,0.00017671,2]
[350948584,1738231847891,-314.32,0.00017671,2]
[350948585,1738231847901,-547.19,0.00017671,2]
[350948586,1738231847912,-7043.98,0.00017671,2]
[350948587,1738231847921,-169.72,0.00017671,2]
[350948588,1738231847930,-588.46,0.00017671,2]
[350948589,1738231847939,-151.0,0.000177,2]
[350948590,1738231847948,-153.0,0.00017759,2]
[350948591,1738231847958,-153.0,0.00017759,2]
[350948592,1738231847967,-153.0,0.00017759,2]
[350948593,1738231847976,-153.0,0.00017759,2]
[350948594,1738231847984,-153.0,0.00017759,2]
[350948595,1738231847994,-153.0,0.00017759,2]
[350948596,1738231848003,-153.0,0.00017759,2]
[350948597,1738231848012,-153.0,0.00017759,2]
[350948598,1738231848022,-153.0,0.00017759,2]
[350948599,1738231848031,-153.0,0.00017759,2]
[350948600,1738231848045,-153.0,0.00017759,2]
[350948601,1738231848054,-153.0,0.00017759,2]
[350948602,1738231848062,-153.0,0.00017759,2]
[350948603,1738231848072,-153.0,0.00017759,2]
[350948604,1738231848081,-317.0,0.00017759,2]
[350948605,1738231848090,-317.0,0.00017759,2]
[350948606,1738231848100,-317.0,0.00017759,2]
[350948607,1738231848109,-317.0,0.00017759,2]
[350948608,1738231848118,-317.0,0.00017759,2]
[350948609,1738231848127,-317.0,0.00017759,2]
[350948610,1738231848136,-317.0,0.00017759,2]
[350948611,1738231848146,-317.0,0.00017759,2]
[350948612,1738231848155,-317.0,0.00017759,2]
[350948613,1738231848165,-317.0,0.00017759,2]
[350948614,1738231848175,-317.0,0.00017759,2]
[350948615,1738231848184,-317.0,0.00017759,2]
[350948616,1738231848194,-317.0,0.00017759,2]
[350948617,1738231848204,-317.0,0.00017759,2]
[350948618,1738231848213,-153.0,0.00017762,2]
[350948619,1738231848223,-153.0,0.00017762,2]
[350948620,1738231848233,-153.0,0.00017762,2]
[350948621,1738231848243,-153.0,0.00017762,2]
[350948622,1738231848252,-153.0,0.00017762,2]
[350948623,1738231848261,-153.0,0.00017762,2]
[350948624,1738231848271,-153.0,0.00017762,2]
[350948625,1738231848281,-153.0,0.00017762,2]
[350948626,1738231848290,-153.0,0.00017762,2]
[350948627,1738231848300,-153.0,0.00017762,2]
[350948628,1738231848310,-153.0,0.00017762,2]
[350948629,1738231848319,-153.0,0.00017762,2]
[350948630,1738231848328,-317.0,0.00017762,2]
[350948631,1738231848338,-317.0,0.00017762,2]
[350948632,1738231848347,-317.0,0.00017762,2]
[350948633,1738231848356,-317.0,0.00017762,2]
[350948634,1738231848366,-317.0,0.00017762,2]
[350948635,1738231848375,-317.0,0.00017762,2]
[350948636,1738231848384,-317.0,0.00017762,2]
[350948637,1738231848393,-317.0,0.00017762,2]
[350948638,1738231848403,-317.0,0.00017762,2]
[350948639,1738231848412,-317.0,0.00017762,2]
[350948640,1738231848421,-317.0,0.00017762,2]
[350948641,1738231848431,-317.0,0.00017762,2]
[350948642,1738231848440,-317.0,0.00017762,2]
[350948643,1738231848450,-150.06,0.00017808,2]
[350948644,1738231848459,-500.0,0.00017808,2]
[350948645,1738231848469,-500.0,0.00017808,2]
[350948646,1738231848479,-190.44,0.00017808,2]
[350948647,1738231848489,-500.0,0.00017808,2]
[350948648,1738231848498,-836.07,0.00017808,2]
[350948649,1738231848507,-500.0,0.00017808,2]
[350948650,1738231848516,-500.0,0.00017808,2]
[350948651,1738231848526,-500.0,0.00017808,2]
[350948652,1738231848535,-994.48,0.00017808,2]
[350948653,1738231848544,-500.0,0.00017808,2]
[350948654,1738231848553,-751.06,0.00017808,2]
[350948655,1738231848563,-500.0,0.00017808,2]
[350948656,1738231848572,-500.0,0.00017808,2]
[350948657,1738231848581,-1377.99,0.00017808,2]
[350948658,1738231848590,-500.0,0.00017808,2]
[350948659,1738231848599,-633.36,0.00017808,2]
[350948660,1738231848608,-619.8,0.00017808,2]
[350948661,1738231848617,-500.0,0.00017808,2]
[350948662,1738231848626,-1852.67,0.00017808,2]
[350948663,1738231848634,-720.48,0.00017808,2]
[350948664,1738231848644,-500.0,0.00017808,2]
[350948665,1738231848653,-547.19,0.00017808,2]
[350948666,1738231848662,-7043.98,0.00017808,2]
[350948667,1738231848671,-588.46,0.00017808,2]
[350948668,1738231848681,-420.0,0.00017934,2]
[350948669,1738231848690,-188.13,0.00017945,2]
[350948670,1738231848699,-500.0,0.00017945,2]
[350948671,1738231848709,-500.0,0.00017945,2]
[350948672,1738231848718,-836.07,0.00017945,2]
[350948673,1738231848727,-500.0,0.00017945,2]
[350948674,1738231848736,-500.0,0.00017945,2]
[350948675,1738231848745,-500.0,0.00017945,2]
[350948676,1738231848755,-994.48,0.00017945,2]
[350948677,1738231848764,-500.0,0.00017945,2]
[350948678,1738231848773,-751.06,0.00017945,2]
[350948679,1738231848783,-366.47819261,0.00017945,2]
[350948680,1738231848792,-373.24,0.00017945,2]
[350948681,1738231848802,-1377.99,0.00017945,2]
[350948682,1738231848812,-500.0,0.00017945,2]
[350948683,1738231848822,-633.36,0.00017945,2]
[350948684,1738231848834,-619.8,0.00017945,2]
[350948685,1738231848843,-500.0,0.00017945,2]
[350948686,1738231848852,-1852.67,0.00017945,2]
[350948687,1738231848862,-720.48,0.00017945,2]
[350948688,1738231848873,-500.0,0.00017945,2]
[350948689,1738231848883,-547.19,0.00017945,2]
[350948690,1738231848892,-7043.98,0.00017945,2]
[350948691,1738231848985,-588.46,0.00017945,2]
[350948692,1738231848995,-1065.8504763,0.00017995,2]
[350948693,1738231849005,-14104.4458066,0.00018,7]
[350948694,1738231849014,-4998.84196532,0.00018,2]
[350948695,1738231849023,-151.0,0.00018,2]
[350948696,1738231849033,-500.0,0.00018,7]
[350948697,1738231849042,-500.0,0.00018,7]
[350948698,1738231849051,-500.0,0.00018,7]
[350948699,1738231849061,-500.0,0.00018,7]
[350948700,1738231849070,-500.0,0.00018,7]
[350948701,1738231849079,-500.0,0.00018,7]
[350948702,1738231849089,-500.0,0.00018,7]
[350948703,1738231849099,-500.0,0.00018,7]
[350948704,1738231849108,-500.0,0.00018,7]
[350948705,1738231849117,-500.0,0.00018,7]
[350948706,1738231849127,-500.0,0.00018,7]
[350948707,1738231849137,-500.0,0.00018,7]
[350948708,1738231849147,-500.0,0.00018,7]
[350948709,1738231849156,-500.0,0.00018,7]
[350948710,1738231849165,-500.0,0.00018,7]
[350948711,1738231849174,-500.0,0.00018,7]
[350948712,1738231849185,-500.0,0.00018,7]
[350948713,1738231849194,-500.0,0.00018,7]
[350948714,1738231849204,-500.0,0.00018,7]
[350948715,1738231849212,-500.0,0.00018,7]
[350948716,1738231849222,-500.0,0.00018,7]
[350948717,1738231849232,-500.0,0.00018,7]
[350948718,1738231849241,-500.0,0.00018,7]
[350948719,1738231849250,-500.0,0.00018,7]
[350948720,1738231849260,-500.0,0.00018,7]
[350948721,1738231849269,-500.0,0.00018,7]
[350948722,1738231849279,-500.0,0.00018,7]
[350948723,1738231849288,-500.0,0.00018,7]
[350948724,1738231849298,-500.0,0.00018,7]
[350948725,1738231849308,-500.0,0.00018,7]
[350948726,1738231849318,-500.0,0.00018,7]
[350948727,1738231849328,-500.0,0.00018,7]
[350948728,1738231849337,-500.0,0.00018,7]
[350948729,1738231849347,-500.0,0.00018,7]
[350948730,1738231849358,-500.0,0.00018,7]
[350948731,1738231849368,-500.0,0.00018,7]
[350948732,1738231849377,-500.0,0.00018,7]
[350948733,1738231849387,-500.0,0.00018,7]
[350948734,1738231849396,-500.0,0.00018,7]
[350948735,1738231849406,-500.0,0.00018,7]
[350948736,1738231849415,-500.0,0.00018,7]
[350948737,1738231849425,-500.0,0.00018,7]
[350948738,1738231849434,-500.0,0.00018,7]
[350948739,1738231849444,-500.0,0.00018,7]
[350948740,1738231849453,-500.0,0.00018,7]
[350948741,1738231849463,-500.0,0.00018,7]
[350948742,1738231849472,-500.0,0.00018,7]
[350948743,1738231849481,-500.0,0.00018,7]
[350948744,1738231849491,-500.0,0.00018,7]
[350948745,1738231849500,-500.0,0.00018,7]
[350948746,1738231849510,-500.0,0.00018,7]
[350948747,1738231849519,-500.0,0.00018,7]
[350948748,1738231849528,-500.0,0.00018,7]
[350948749,1738231849539,-500.0,0.00018,7]
[350948750,1738231849548,-500.0,0.00018,7]
[350948751,1738231849558,-500.0,0.00018,7]
[350948752,1738231849569,-500.0,0.00018,7]
[350948753,1738231849578,-500.0,0.00018,7]
[350948754,1738231849588,-500.0,0.00018,7]
[350948755,1738231849597,-500.0,0.00018,7]
[350948756,1738231849608,-500.0,0.00018,7]
[350948757,1738231849618,-500.0,0.00018,7]
[350948758,1738231849627,-500.0,0.00018,7]
[350948759,1738231849637,-500.0,0.00018,7]
[350948760,1738231849646,-500.0,0.00018,7]
[350948761,1738231849657,-500.0,0.00018,7]
[350948762,1738231849668,-500.0,0.00018,7]
[350948763,1738231849677,-174.47,0.00018,7]
[350948764,1738231849687,-150.06,0.00018082,2]
[350948765,1738231849697,-500.0,0.00018082,2]
[350948766,1738231849707,-500.0,0.00018082,2]
[350948767,1738231849716,-836.07,0.00018082,2]
[350948768,1738231849725,-500.0,0.00018082,2]
[350948769,1738231849737,-500.0,0.00018082,2]
[350948770,1738231849746,-500.0,0.00018082,2]
[350948771,1738231849756,-994.48,0.00018082,2]
[350948772,1738231849766,-500.0,0.00018082,2]
[350948773,1738231849775,-751.06,0.00018082,2]
[350948774,1738231849784,-1377.99,0.00018082,2]
[350948775,1738231849793,-500.0,0.00018082,2]
[350948776,1738231849803,-633.36,0.00018082,2]
[350948777,1738231849813,-619.8,0.00018082,2]
[350948778,1738231849824,-607.49474398,0.00018082,2]
[350948779,1738231849835,-1852.67,0.00018082,2]
[350948780,1738231849845,-720.48,0.00018082,2]
[350948781,1738231849854,-500.0,0.00018082,2]
[350948782,1738231849864,-547.19,0.00018082,2]
[350948783,1738231849874,-7043.98,0.00018082,2]
[350948784,1738231849884,-588.46,0.00018082,2]
[350948785,1738231849893,-151.0,0.000182,2]
[350948786,1738231849903,-151.0,0.000182,2]
[350948787,1738231849913,-500.0,0.00018219,2]
[350948788,1738231849924,-500.0,0.00018219,2]
[350948789,1738231849933,-836.07,0.00018219,2]
[350948790,1738231849944,-500.0,0.00018219,2]
[350948791,1738231849955,-621.84355693,0.00018219,2]
[350948792,1738231849965,-500.0,0.00018219,2]
[350948793,1738231849975,-994.48,0.00018219,2]
[350948794,1738231849984,-500.0,0.00018219,2]
[350948795,1738231849994,-751.06,0.00018219,2]
[350948796,1738231850004,-1377.99,0.00018219,2]
[350948797,1738231850013,-500.0,0.00018219,2]
[350948798,1738231850024,-633.36,0.00018219,2]
[350948799,1738231850035,-619.8,0.00018219,2]
[350948800,1738231850046,-1852.67,0.00018219,2]
[350948801,1738231850056,-720.48,0.00018219,2]
[350948802,1738231850065,-500.0,0.00018219,2]
[350948803,1738231850076,-547.19,0.00018219,2]
[350948804,1738231850085,-7043.98,0.00018219,2]
[350948805,1738231850095,-588.46,0.00018219,2]
[350948806,1738231850106,-2000.0,0.000183,2]
[350948807,1738231850118,-2000.0,0.000183,2]
[350948808,1738231850129,-150.06,0.00018356,2]
[350948809,1738231850139,-500.0,0.00018356,2]
[350948810,1738231850149,-500.0,0.00018356,2]
[350948811,1738231850161,-836.07,0.00018356,2]
[350948812,1738231850172,-500.0,0.00018356,2]
[350948813,1738231850182,-500.0,0.00018356,2]
[350948814,1738231850192,-994.48,0.00018356,2]
[350948815,1738231850201,-376.65961394,0.00018356,2]
[350948816,1738231850210,-751.06,0.00018356,2]
[350948817,1738231850220,-1377.99,0.00018356,2]
[350948818,1738231850230,-500.0,0.00018356,2]
[350948819,1738231850240,-633.36,0.00018356,2]
[350948820,1738231850250,-619.8,0.00018356,2]
[350948821,1738231850260,-1852.67,0.00018356,2]
[350948822,1738231850270,-720.48,0.00018356,2]
[350948823,1738231850281,-500.0,0.00018356,2]
[350948824,1738231850291,-547.19,0.00018356,2]
[350948825,1738231850300,-7043.98,0.00018356,2]
[350948826,1738231850311,-588.46,0.00018356,2]
[350948827,1738231850320,-151.0,0.000184,2]
[350948828,1738231850330,-151.0,0.000184,2]
[350948829,1738231850340,-153.6906943,0.00018411,2]
[350948830,1738231850349,-387.87256063,0.00018493,2]
[350948831,1738231850359,-500.0,0.00018493,2]
[350948832,1738231850368,-836.07,0.00018493,2]
[350948833,1738231850378,-361.78500606,0.00018493,2]
[350948834,1738231850388,-500.0,0.00018493,2]
[350948835,1738231850398,-994.48,0.00018493,2]
[350948836,1738231850407,-751.06,0.00018493,2]
[350948837,1738231850416,-1377.99,0.00018493,2]
[350948838,1738231850426,-500.0,0.00018493,2]
[350948839,1738231850435,-633.36,0.00018493,2]
[350948840,1738231850444,-619.8,0.00018493,2]
[350948841,1738231850454,-1852.67,0.00018493,2]
[350948842,1738231850463,-720.48,0.00018493,2]
[350948843,1738231850472,-500.0,0.00018493,2]
[350948844,1738231850482,-547.19,0.00018493,2]
[350948845,1738231850491,-7043.98,0.00018493,2]
[350948846,1738231850500,-588.46,0.00018493,2]
[350948847,1738231850511,-4998.84196532,0.000185,2]
[350948848,1738231850520,-160.0,0.00018501,3]
[350948849,1738231850529,-167.6621662,0.00018501,5]
[350948850,1738231850539,-502.73493411,0.0001852,2]
[350948851,1738231850548,-177.26,0.000186,2]
[350948852,1738231850557,-177.26,0.000186,2]
[350948853,1738231850566,-249.7,0.0001863,2]
[350948854,1738231850575,-500.0,0.0001863,2]
[350948855,1738231850585,-836.07,0.0001863,2]
[350948856,1738231850594,-500.0,0.0001863,2]
[350948857,1738231850603,-994.48,0.0001863,2]
[350948858,1738231850612,-751.06,0.0001863,2]
[350948859,1738231850621,-1377.99,0.0001863,2]
[350948860,1738231850631,-500.0,0.0001863,2]
[350948861,1738231850641,-633.36,0.0001863,2]
[350948862,1738231850651,-619.8,0.0001863,2]
[350948863,1738231850662,-1852.67,0.0001863,2]
[350948864,1738231850672,-720.48,0.0001863,2]
[350948865,1738231850682,-500.0,0.0001863,2]
[350948866,1738231850691,-547.19,0.0001863,2]
[350948867,1738231850700,-7043.98,0.0001863,2]
[350948868,1738231850710,-588.46,0.0001863,2]
[350948869,1738231850719,-6785.13987689,0.00018645,2]
[350948870,1738231850728,-2560.33838248,0.00018645,2]
[350948871,1738231850737,-500.0,0.00018767,2]
[350948872,1738231850746,-836.07,0.00018767,2]
[350948873,1738231850756,-217.25368372,0.00018767,2]
[350948874,1738231850766,-994.48,0.00018767,2]
[350948875,1738231850852,-751.06,0.00018767,2]
[350948876,1738231850864,-1377.99,0.00018767,2]
[350948877,1738231850875,-500.0,0.00018767,2]
[350948878,1738231850886,-633.36,0.00018767,2]
[350948879,1738231850895,-619.8,0.00018767,2]
[350948880,1738231850907,-1852.67,0.00018767,2]
[350948881,1738231850917,-720.48,0.00018767,2]
[350948882,1738231850927,-500.0,0.00018767,2]
[350948883,1738231850937,-547.19,0.00018767,2]
[350948884,1738231850947,-7043.98,0.00018767,2]
[350948885,1738231850957,-588.46,0.00018767,2]
[350948886,1738231850968,-6422.39,0.000188,2]
[350948887,1738231850978,-5380.23,0.000188,2]
[350948888,1738231850988,-1065.8504763,0.00018823,2]
[350948889,1738231850998,-3227.49862196,0.000189,2]
[350948890,1738231851008,-500.0,0.00018904,2]
[350948891,1738231851017,-836.07,0.00018904,2]
[350948892,1738231851026,-994.48,0.00018904,2]
[350948893,1738231851036,-751.06,0.00018904,2]
[350948894,1738231851046,-1377.99,0.00018904,2]
[350948895,1738231851055,-500.0,0.00018904,2]
[350948896,1738231851065,-633.36,0.00018904,2]
[350948897,1738231851074,-619.8,0.00018904,2]
[350948898,1738231851084,-1852.67,0.00018904,2]
[350948899,1738231851094,-720.48,0.00018904,2]
[350948900,1738231851104,-500.0,0.00018904,2]
[350948901,1738231851113,-547.19,0.00018904,2]
[350948902,1738231851123,-7043.98,0.00018904,2]
[350948903,1738231851132,-588.46,0.00018904,2]
[350948904,1738231851142,-500.0,0.00018973,2]
[350948905,1738231851151,-500.0,0.00018973,2]
[350948906,1738231851161,-500.0,0.00018973,2]
[350948907,1738231851170,-500.0,0.00018973,2]
[350948908,1738231851180,-500.0,0.00018973,2]
[350948909,1738231851190,-500.0,0.00018973,2]
[350948910,1738231851199,-500.0,0.00018973,2]
[350948911,1738231851208,-500.0,0.00018973,2]
[350948912,1738231851217,-500.0,0.00018973,2]
[350948913,1738231851226,-500.0,0.00018973,2]
[350948914,1738231851236,-1047.49746887,0.00018998,2]
[350948915,1738231851246,-20098.00447723,0.00019,2]
[350948916,1738231851255,-30000.0,0.00019,2]
[350948917,1738231851264,-26054.75184804,0.00019,2]
[350948918,1738231851273,-30000.0,0.00019,2]
[350948919,1738231851283,-29553.09120431,0.00019,2]
[350948920,1738231851292,-210.38233177,0.00019,3]
[350948921,1738231851301,-4998.84196532,0.00019,2]
[350948922,1738231851311,-566.50594134,0.00019,2]
[350948923,1738231851320,-302.8183302,0.00019,2]
[350948924,1738231851330,-302.8183302,0.00019,2]
[350948925,1738231851339,-913.17,0.00019041,2]
[350948926,1738231851354,-500.0,0.00019041,2]
[350948927,1738231851365,-836.07,0.00019041,2]
[350948928,1738231851375,-994.48,0.00019041,2]
[350948929,1738231851385,-751.06,0.00019041,2]
[350948930,1738231851394,-1377.99,0.00019041,2]
[350948931,1738231851404,-417.66394457,0.00019041,2]
[350948932,1738231851413,-633.36,0.00019041,2]
[350948933,1738231851424,-619.8,0.00019041,2]
[350948934,1738231851433,-1852.67,0.00019041,2]
[350948935,1738231851443,-720.48,0.00019041,2]
[350948936,1738231851452,-568.99559792,0.00019041,2]
[350948937,1738231851461,-547.19,0.00019041,2]
[350948938,1738231851471,-7043.98,0.00019041,2]
[350948939,1738231851480,-588.46,0.00019041,2]
[350948940,1738231851489,-3331.66297725,0.00019081,2]
[350948941,1738231851498,-7814.444028,0.00019091,2]
[350948942,1738231851507,-14000.91588445,0.00019099,2]
[350948943,1738231851516,-5009.17068539,0.00019143,2]
[350948944,1738231851526,-913.17,0.00019178,2]
[350948945,1738231851535,-500.0,0.00019178,2]